bitfinex/quotes_SOLUSD_20220103
["timestamp","ask_amount","ask_price","bid_price","bid_amount"]
[1641215877133,1.82688501,174.48,174.39,1.68669368]
[1641215877432,1.82688501,174.48,174.42,8.5977]
[1641215877633,10.16370435,174.52,174.42,8.5977]
[1641215877834,10.16370435,174.52,174.43,1.42669368]
[1641215878034,10.16370435,174.52,174.43,1.68669368]
[1641215878234,8.5977,174.52,174.43,1.68669368]
[1641215878435,8.5977,174.52,174.44,1.42669368]
[1641215878635,2.6075018,174.51,174.44,1.42669368]
[1641215878836,2.6075018,174.51,174.44,0.26]
[1641215879436,2.6075018,174.51,174.44,8.5971]
[1641215879635,2.6075018,174.51,174.44,8.8571]
[1641215880639,393.04261193,174.58,174.45,1.42669368]
[1641215880839,393.04261193,174.58,174.5,8.594]
[1641215881041,393.04261193,174.58,174.5,0.26]
[1641215881241,393.04261193,174.58,174.51,1.42669368]
[1641215881442,391.47660758,174.58,174.51,1.42669368]
[1641215881642,2.9711924,174.57,174.51,1.68669368]
[1641215882040,2.9711924,174.57,174.51,8.8535]
[1641215884250,8.5938,174.6,174.51,8.8535]
[1641215884447,1.56600435,174.64,174.55,8.5917]
[1641215884947,2.06600435,174.64,174.56,1.42669368]
[1641215885147,0.5,174.64,174.56,1.42669368]
[1641215885350,2.60414508,174.63,174.56,1.68669368]
[1641215885948,2.10414508,174.63,174.56,1.68669368]
[1641215886149,2.10414508,174.63,174.56,1.70669368]
[1641215888452,2.60414508,174.63,174.56,1.70669368]
[1641215889151,2.10414508,174.63,174.56,1.70669368]
[1641215890657,2.10414508,174.63,174.48,6.03318793]
[1641215890658,64.0,174.62,174.48,12.79438793]
[1641215890857,64.5,174.62,174.49,8.5945]
[1641215891059,158.5,174.62,174.48,4.69438793]
[1641215891459,159.8063,174.62,174.48,4.69438793]
[1641215891658,8.5944,174.6,174.48,4.69438793]
[1641215891864,2.74499495,174.59,174.48,4.69438793]
[1641215892259,2.74499495,174.59,174.47,108.55731497]
[1641215892484,2.74499495,174.59,174.51,8.5938]
[1641215892783,3.24499495,174.59,174.51,8.5938]
[1641215892985,3.24499495,174.59,174.51,8.8538]
[1641215894689,11.46550435,174.62,174.51,8.8538]
[1641215894889,1.56600435,174.62,174.55,8.5916]
[1641215895093,1.56600435,174.62,174.56,22.73567003]
[1641215895589,1.56600435,174.64,174.56,22.99567003]
[1641215895789,1.56600435,174.64,174.56,31.09567003]
[1641215895991,1.56600435,174.64,174.56,39.68677003]
[1641215896391,1.56600435,174.64,174.57,1.42669368]
[1641215896591,363.65936765,174.71,174.57,9.78669368]
[1641215896790,8.5899,174.69,174.57,9.78669368]
[1641215896994,8.5899,174.69,174.58,10.01659368]
[1641215897391,9.0899,174.69,174.58,10.27659368]
[1641215897593,8.5899,174.69,174.58,10.27659368]
[1641215898195,9.0899,174.69,174.58,10.27659368]
[1641215898794,9.3499,174.69,174.58,8.8499]
[1641215899295,9.3499,174.69,174.58,0.26]
[1641215899498,9.3499,174.69,174.56,8.8512]
[1641215899895,9.0899,174.69,174.56,8.8512]
[1641215900098,9.8462,174.69,174.56,10.27789368]
[1641215900399,10.3462,174.69,174.56,8.8512]
[1641215901796,10.6062,174.69,174.56,8.8512]
[1641215901995,10.3462,174.69,174.56,8.8512]
[1641215902198,9.8462,174.69,174.56,16.9512]
[1641215902497,9.8462,174.69,174.56,18.37789368]
[1641215906707,10.3462,174.69,174.56,16.9512]
[1641215907106,9.8462,174.69,174.56,16.9512]
[1641215907307,9.8462,174.69,174.57,3.25126926]
[1641215907507,9.8462,174.69,174.58,8.5905]
[1641215907910,9.8462,174.69,174.58,8.8505]
[1641215908107,9.8462,174.69,174.58,13.54488793]
[1641215909016,10.3462,174.69,174.58,13.54488793]
[1641215909517,10.6062,174.69,174.58,13.54488793]
[1641215911437,10.6062,174.69,174.58,8.8505]
[1641215913438,10.6062,174.69,174.58,8.5905]
[1641215913841,10.6062,174.69,174.57,4.69438793]
[1641215914740,10.6062,174.69,174.57,4.95438793]
[1641215916245,10.6062,174.69,174.57,13.54558793]
[1641215916443,10.6062,174.69,174.57,8.8512]
[1641215917146,18.7062,174.69,174.57,8.8512]
[1641215917346,18.4462,174.69,174.57,8.8512]
[1641215918750,18.7062,174.69,174.57,8.8512]
[1641215918950,18.7062,174.69,174.57,0.26]
[1641215919452,18.7062,174.69,174.56,3.25168862]
[1641215920550,18.7062,174.69,174.55,84.44338793]
[1641215920752,18.7062,174.69,174.55,84.70338793]
[1641215922454,18.7062,174.69,174.55,93.29558793]
[1641215922852,18.7062,174.69,174.55,93.03558793]
[1641215924254,18.7062,174.69,174.55,93.29558793]
[1641215927858,8.5918,174.63,174.55,93.29558793]
[1641215928056,10.77739724,174.63,174.55,93.29558793]
[1641215928662,10.77739724,174.63,174.55,94.72228161]
[1641215928663,2.18559724,174.63,174.55,94.72228161]
[1641215929158,2.18559724,174.63,174.55,94.46228161]
[1641215930258,2.18559724,174.63,174.55,89.76789368]
[1641215930559,2.18559724,174.63,174.55,90.02789368]
[1641215931859,8.5916,174.64,174.55,90.02789368]
[1641215934267,8.5916,174.64,174.55,88.6012]
[1641215937267,2.50769996,174.65,174.55,90.02789368]
[1641215938269,2.50769996,174.65,174.55,91.28519368]
[1641215939870,11.09829996,174.65,174.55,91.28519368]
[1641215941272,2.50769996,174.65,174.55,91.28519368]
[1641215946109,11.09799996,174.65,174.55,91.28519368]
[1641215947306,2.50769996,174.65,174.55,91.28519368]
[1641215949508,2.50769996,174.65,174.55,99.38519368]
[1641215950509,11.09799996,174.65,174.55,99.38519368]
[1641215952914,2.50769996,174.65,174.55,99.38519368]
[1641215955614,11.09799996,174.65,174.55,99.38519368]
[1641215956217,2.50769996,174.65,174.55,99.38519368]
[1641215956413,2.50769996,174.65,174.55,99.12519368]
[1641215957414,11.09799996,174.65,174.55,99.12519368]
[1641215959016,11.09799996,174.65,174.55,99.38519368]
[1641215962919,9.8917,174.64,174.55,99.38519368]
[1641215964924,10.3917,174.64,174.55,99.38519368]
[1641215965526,10.3917,174.64,174.55,99.12519368]
[1641215966728,10.3917,174.64,174.55,81.17569368]
[1641215966928,10.6517,174.64,174.51,1.42669368]
[1641215967129,10.6517,174.64,174.5,82.2155]
[1641215967827,85.3226,174.64,174.5,82.2155]
[1641215968427,85.3226,174.64,174.5,90.8096]
[1641215969029,85.3226,174.64,174.5,91.0696]
[1641215969830,8.1,174.63,174.5,90.8096]
[1641215970032,2.95965601,174.62,174.5,2.5125]
[1641215970235,2.35846541,174.56,174.5,2.5125]
[1641215970433,2.35846541,174.56,174.5,1.26]
[1641215971333,2.35846541,174.56,174.5,1.52]
[1641215971532,10.95356541,174.56,174.5,1.52]
[1641215972333,10.95356541,174.56,174.5,0.26]
[1641215972532,10.95356541,174.56,174.49,8.855]
[1641215974934,10.95356541,174.56,174.49,0.26]
[1641215975134,10.95356541,174.56,174.48,82.2086]
[1641215976137,2.35846541,174.56,174.48,82.2086]
[1641215977438,2.35846541,174.56,174.48,81.9486]
[1641215977639,10.95336541,174.56,174.48,81.9486]
[1641215979741,10.95336541,174.56,174.48,82.2086]
[1641215984047,8.5949,174.56,174.48,82.2086]
[1641215987073,9.9246,174.56,174.48,82.2086]
[1641215987371,1.3297,174.56,174.48,82.2086]
[1641215988473,1.3297,174.56,174.49,1.2866]
[1641215988672,1.3297,174.56,174.5,8.5939]
[1641215989071,1.3297,174.56,174.5,8.8539]
[1641215996077,1.3297,174.56,174.5,0.26]
[1641215996480,1.3297,174.56,174.49,10.1411]
[1641215997080,1.3297,174.56,174.49,18.2411]
[1641215998783,2.51241471,174.58,174.49,18.2411]
[1641215998982,2.51241471,174.58,174.49,19.66779368]
[1641216000086,1.3329,174.61,174.49,19.66779368]
[1641216000486,8.5929,174.6,174.49,19.66779368]
[1641216001088,8.5929,174.6,174.49,18.2411]
[1641216001289,2.87200609,174.59,174.49,18.2411]
[1641216002497,11.46530609,174.59,174.49,18.2411]
[1641216008595,11.46530609,174.59,174.49,17.9811]
[1641216008996,11.72530609,174.59,174.49,8.1]
[1641216009396,12.22530609,174.59,174.49,8.1]
[1641216009597,1.339,174.58,174.49,8.1]
[1641216009796,2.19386668,174.54,174.49,8.1]
[1641216010402,2.19386668,174.54,174.49,8.36]
[1641216010604,2.19386668,174.54,174.49,0.26]
[1641216011002,2.19386668,174.54,174.48,82.2085]
[1641216011605,8.5953,174.55,174.48,82.2085]
[1641216011804,8.5953,174.55,174.48,81.9485]
[1641216013325,8.5953,174.55,174.48,82.2085]
[1641216013827,9.8993,174.55,174.48,82.2085]
[1641216015027,1.304,174.55,174.48,82.2085]
[1641216016530,8.5943,174.57,174.48,82.2085]
[1641216016729,31.69762662,174.6,174.48,82.2085]
[1641216016730,1.3067,174.59,174.48,82.2085]
[1641216016930,1.3067,174.59,174.49,1.2964]
[1641216017129,1.3067,174.59,174.53,8.5932]
[1641216017529,1.3067,174.59,174.53,8.8532]
[1641216017929,9.9,174.59,174.53,0.26]
[1641216018129,9.9,174.59,174.49,1.5564]
[1641216019533,9.9,174.59,174.52,8.5938]
[1641216019930,9.9,174.59,174.52,8.8538]
[1641216024435,9.9,174.59,174.52,0.26]
[1641216024635,9.9,174.59,174.51,8.5944]
[1641216024836,10.4,174.59,174.48,73.3534]
[1641216025137,10.66,174.59,174.48,73.3534]
[1641216026140,10.66,174.59,174.48,82.2091]
[1641216027041,10.66,174.59,174.48,73.6134]
[1641216029038,10.66,174.59,174.48,0.26]
[1641216029440,10.66,174.59,174.47,10.1266]
[1641216030042,10.66,174.59,174.47,1.5305]
[1641216030243,9.9,174.59,174.47,1.5305]
[1641216031245,10.16,174.59,174.47,10.1265]
[1641216031846,10.66,174.59,174.47,10.1265]
[1641216032446,10.66,174.59,174.47,9.8665]
[1641216033748,18.76,174.59,174.47,9.8665]
[1641216034147,18.76,174.59,174.47,10.1265]
[1641216039879,18.5,174.59,174.47,10.1265]
[1641216040080,18.0,174.59,174.47,10.1265]
[1641216040679,9.9,174.59,174.47,10.1265]
[1641216041378,10.4,174.59,174.47,10.1265]
[1641216041579,9.9,174.59,174.47,10.1265]
[1641216043883,9.9,174.59,174.47,15.4305]
[1641216044685,9.9,174.59,174.47,15.1705]
[1641216045283,9.9,174.59,174.47,9.8665]
[1641216045986,9.9,174.59,174.47,10.1265]
[1641216046486,10.4,174.59,174.47,10.1265]
[1641216046684,9.9,174.59,174.47,10.1265]
[1641216053496,9.9,174.59,174.52,8.5935]
[1641216053695,9.9,174.59,174.51,8.1]
[1641216054097,9.9,174.59,174.51,8.36]
[1641216055497,9.9,174.59,174.53,8.5933]
[1641216055898,9.9,174.59,174.53,8.8533]
[1641216060102,9.9,174.59,174.53,15.3093]
[1641216065934,9.9,174.59,174.53,8.8533]
[1641216067636,9.9,174.59,174.53,0.26]
[1641216067834,9.9,174.59,174.51,8.5941]
[1641216068437,10.16,174.59,174.5,1.2258]
[1641216068940,10.66,174.59,174.5,1.2258]
[1641216069343,10.66,174.59,174.5,1.4858]
[1641216069539,10.66,174.59,174.5,10.0808]
[1641216070541,10.66,174.59,174.5,1.4858]
[1641216072443,10.66,174.59,174.5,1.2258]
[1641216072643,10.66,174.59,174.49,78.4688]
[1641216073843,10.66,174.59,174.49,78.7288]
[1641216076548,10.66,174.59,174.48,1.2274]
[1641216078147,10.66,174.59,174.48,1.4874]
[1641216078348,10.66,174.59,174.48,1.2274]
[1641216078647,10.66,174.59,174.48,1.4874]
[1641216079050,18.76,174.59,174.48,1.4874]
[1641216080249,18.76,174.59,174.48,10.0833]
[1641216080448,18.5,174.59,174.49,27.52905299]
[1641216080847,18.5,174.59,174.49,27.78905299]
[1641216081046,10.4,174.59,174.49,27.78905299]
[1641216081250,9.9,174.59,174.49,27.78905299]
[1641216081849,9.9,174.59,174.51,8.5944]
[1641216082052,9.9,174.59,174.51,8.8544]
[1641216086156,9.9,174.59,174.51,8.5944]
[1641216087758,8.5933,174.59,174.51,8.5944]
[1641216088359,8.5933,174.59,174.51,15.6754]
[1641216089061,8.5933,174.59,174.51,15.9354]
[1641216091564,11.63952662,174.6,174.51,15.9354]
[1641216095370,12.13952662,174.6,174.51,15.9354]
[1641216095669,11.63952662,174.6,174.51,15.9354]
[1641216096573,11.63952662,174.6,174.51,15.6754]
[1641216097372,11.63952662,174.6,174.51,8.5944]
[1641216097672,8.5939,174.58,174.51,8.5944]
[1641216097873,8.5939,174.58,174.51,8.8544]
[1641216100575,8.5939,174.58,174.51,16.9544]
[1641216101075,8.5939,174.58,174.51,16.6944]
[1641216102179,8.5939,174.58,174.51,8.5944]
[1641216102675,8.5939,174.58,174.51,8.8544]
[1641216102876,8.5939,174.58,174.51,8.5944]
[1641216103475,9.0939,174.58,174.51,13.0944]
[1641216104079,9.9317,174.59,174.51,13.0944]
[1641216104475,9.9317,174.59,174.51,13.3544]
[1641216106980,10.4317,174.59,174.51,13.3544]
[1641216107780,9.9317,174.59,174.51,13.3544]
[1641216108390,10.4317,174.59,174.51,13.3544]
[1641216109987,10.4317,174.59,174.51,13.0944]
[1641216110181,9.9317,174.59,174.51,13.0944]
[1641216111482,9.9317,174.59,174.51,13.3544]
[1641216111883,10.1917,174.59,174.51,13.0944]
[1641216112592,10.6917,174.59,174.51,4.5]
[1641216114211,10.6917,174.59,174.51,4.76]
[1641216116318,10.1917,174.59,174.51,4.76]
[1641216116517,10.6917,174.59,174.51,4.76]
[1641216116919,10.6917,174.59,174.57,4.5]
[1641216117119,42.06439994,174.58,174.57,4.5]
[1641216117317,50.65979994,174.58,174.57,4.5]
[1641216117516,14.65979994,174.58,174.57,4.5]
[1641216117721,6.06439994,174.58,174.57,4.5]
[1641216121022,14.65859994,174.58,174.57,4.5]
[1641216123027,8.5942,174.58,174.51,9.8596]
[1641216123228,8.5942,174.58,174.51,10.1196]
[1641216124031,9.945,174.59,174.51,10.1196]
[1641216129735,9.945,174.59,174.51,9.8596]
[1641216131034,9.945,174.59,174.51,10.1196]
[1641216137544,3.04662662,174.6,174.51,10.1196]
[1641216141868,3.04662662,174.6,174.51,11.54629368]
[1641216142468,74.6709,174.64,174.51,11.54629368]
[1641216142672,74.6709,174.64,174.58,8.591]
[1641216142870,10.0476,174.66,174.58,8.591]
[1641216143070,1.2792,174.66,174.58,10.27769368]
[1641216143272,1.2792,174.66,174.59,1.2962]
[1641216143474,2.66973625,174.66,174.59,9.6562]
[1641216143673,2.66973625,174.66,174.6,1.42669368]
[1641216144071,2.66973625,174.66,174.6,1.68669368]
[1641216144271,2.66973625,174.66,174.61,8.5896]
[1641216144472,2.66973625,174.66,174.61,8.8496]
[1641216144673,2.66973625,174.66,174.61,0.26]
[1641216145273,2.66973625,174.66,174.6,1.68669368]
[1641216146373,11.25973625,174.66,174.6,1.68669368]
[1641216146573,11.25973625,174.66,174.6,10.27669368]
[1641216146772,8.59,174.66,174.6,10.27669368]
[1641216147076,1.56600435,174.73,174.61,9.52669368]
[1641216147477,1.56600435,174.73,174.65,8.5873]
[1641216147680,1.56600435,174.73,174.62,2.71249368]
[1641216147879,2.31543432,174.72,174.66,1.42669368]
[1641216148082,2.31543432,174.72,174.66,1.68669368]
[1641216148987,2.31543432,174.72,174.67,8.5866]
[1641216149485,2.31543432,174.72,174.66,1.42669368]
[1641216151187,28.6253,174.77,174.67,31.76301822]
[1641216151388,1.2567,174.79,174.67,31.76301822]
[1641216151588,1.2567,174.79,174.68,2.70879368]
[1641216151989,1.2567,174.79,174.69,1.42669368]
[1641216152188,2.27534608,174.78,174.69,1.42669368]
[1641216152388,10.86044608,174.78,174.71,8.5846]
[1641216152692,10.86044608,174.78,174.71,8.8446]
[1641216153288,10.36044608,174.78,174.71,8.8446]
[1641216154490,10.36044608,174.78,174.72,1.42669368]
[1641216154892,10.36044608,174.78,174.72,1.68669368]
[1641216155495,8.5851,174.78,174.72,1.42669368]
[1641216155695,1.2567,174.79,174.73,1.42669368]
[1641216156597,2.94620038,174.78,174.73,1.42669368]
[1641216156795,2.94620038,174.78,174.73,1.68669368]
[1641216157794,2.94620038,174.78,174.74,1.42669368]
[1641216157996,2.94620038,174.78,174.74,1.68669368]
[1641216158401,2.94620038,174.78,174.74,0.26]
[1641216158827,2.94620038,174.78,174.71,10.27109368]
[1641216160431,9.8411,174.79,174.71,10.27109368]
[1641216161531,12.87941917,174.79,174.71,10.27109368]
[1641216162132,12.87941917,174.79,174.71,8.8444]
[1641216164538,13.13941917,174.79,174.71,8.5844]
[1641216164838,13.13941917,174.79,174.7,8.5853]
[1641216165235,12.87941917,174.79,174.7,8.5853]
[1641216165840,1.2567,174.79,174.7,8.5853]
[1641216166038,1.2567,174.79,174.7,10.01199368]
[1641216166340,1.2567,174.79,174.7,10.27199368]
[1641216168138,1.2567,174.79,174.7,11.34609368]
[1641216169541,1.2567,174.79,174.7,11.60609368]
[1641216170644,1.2567,174.79,174.7,14.85482806]
[1641216171243,1.2567,174.79,174.71,4.69438793]
[1641216171444,1.2567,174.79,174.74,8.5833]
[1641216171842,1.2567,174.79,174.74,8.8433]
[1641216177253,2.72531394,174.8,174.74,8.8433]
[1641216181864,1.2427,174.81,174.74,38.92243145]
[1641216182764,1.2427,174.81,174.74,38.66243145]
[1641216182968,2.68635525,174.8,174.74,8.5833]
[1641216184067,2.68635525,174.8,174.74,8.8433]
[1641216190003,1.2427,174.81,174.74,8.8433]
[1641216190201,219.17913366,174.93,174.75,1.74125672]
[1641216190202,1.2202,174.86,174.75,1.74125672]
[1641216190402,1.3527,174.85,174.8,8.5798]
[1641216190602,8.1,174.9,174.8,8.8398]
[1641216190902,1.2199,174.89,174.8,10.26649368]
[1641216191103,2.95298592,174.88,174.8,10.26649368]
[1641216191701,3.45298592,174.88,174.8,10.26649368]
[1641216192305,12.03308592,174.88,174.8,1.68669368]
[1641216192508,12.03308592,174.88,174.8,0.26]
[1641216192903,12.03308592,174.88,174.79,8.8408]
[1641216193104,12.29308592,174.88,174.79,8.8408]
[1641216193705,1.284,174.87,174.79,8.8408]
[1641216194306,0.5,174.88,174.8,1.42669368]
[1641216194507,0.5,174.88,174.83,8.5786]
[1641216194709,1.2919,174.91,174.83,8.5786]
[1641216194906,1.7919,174.91,174.83,8.8386]
[1641216195307,2.55325908,174.9,174.83,8.8386]
[1641216195710,3.05325908,174.9,174.83,8.8386]
[1641216196310,2.55325908,174.9,174.83,8.8386]
[1641216199412,2.55325908,174.9,174.84,10.00479368]
[1641216199610,2.55325908,174.9,174.84,10.26479368]
[1641216202116,2.55325908,174.9,174.84,8.8381]
[1641216202519,1.2919,174.91,174.84,8.8381]
[1641216202718,1.2919,174.91,174.84,15.75479368]
[1641216203119,8.1,174.95,174.84,15.75479368]
[1641216203317,1.3386,174.94,174.84,15.75479368]
[1641216203516,2.40498498,174.93,174.84,15.75479368]
[1641216203738,1.3386,174.94,174.84,15.75479368]
[1641216204440,1.2514,174.99,174.84,15.75479368]
[1641216204637,1.2514,174.99,174.84,10.26479368]
[1641216204638,2.67595988,174.97,174.84,10.26479368]
[1641216204838,3.17595988,174.97,174.85,1.2691]
[1641216205038,3.17595988,174.97,174.89,8.5755]
[1641216205539,3.17595988,174.97,174.89,8.8355]
[1641216206142,11.75195988,174.97,174.89,8.8355]
[1641216206540,12.01195988,174.97,174.89,8.8355]
[1641216206740,12.01195988,174.97,174.89,0.26]
[1641216206941,12.01195988,174.97,174.88,40.77398848]
[1641216208843,3.43595988,174.97,174.89,10.00229368]
[1641216209144,3.43595988,174.97,174.9,1.42669368]
[1641216209546,3.43595988,174.97,174.9,0.26]
[1641216210147,3.43595988,174.97,174.88,32.19778848]
[1641216210849,12.01205988,174.97,174.88,0.26]
[1641216211047,12.01205988,174.97,174.87,8.8363]
[1641216211447,12.01205988,174.97,174.87,8.5763]
[1641216212848,12.01205988,174.97,174.87,8.8363]
[1641216215352,1.2779,174.96,174.87,8.8363]
[1641216215554,1.2779,174.96,174.87,10.26299368]
[1641216215754,1.7779,174.96,174.87,10.26299368]
[1641216216556,1.7779,174.96,174.87,11.50329368]
[1641216217155,1.2779,174.96,174.87,11.50329368]
[1641216219260,1.2514,174.99,174.87,19.60329368]
[1641216219461,2.552,174.99,174.87,19.60329368]
[1641216222485,9.66600435,175.04,174.87,19.60329368]
[1641216222663,2.88010435,175.04,174.87,108.38725279]
[1641216223064,1.3141,175.04,174.87,108.38725279]
[1641216223268,379.55833194,175.05,174.9,101.23]
[1641216223464,379.55833194,175.05,174.92,31.18477057]
[1641216223669,1.56600435,175.08,174.99,88.78696407]
[1641216223868,1.56600435,175.08,174.99,32.88696407]
[1641216224071,1.56600435,175.08,174.99,33.14696407]
[1641216224264,1.56600435,175.08,174.99,32.88696407]
[1641216224664,3.00202593,175.1,174.99,32.88696407]
[1641216224866,3.00202593,175.1,175.04,8.5683]
[1641216225468,3.00202593,175.1,175.04,8.8283]
[1641216226067,1.2417,175.13,175.04,8.5683]
[1641216226970,2.29225929,175.14,175.06,30.17964919]
[1641216227170,0.28684961,175.15,175.09,8.5656]
[1641216227369,1.13664961,175.19,175.1,39.0]
[1641216227579,1.13664961,175.19,175.1,40.68669368]
[1641216227769,1.13664961,175.19,175.1,1.68669368]
[1641216228374,2.90705313,175.18,175.1,1.68669368]
[1641216228769,3.40705313,175.18,175.1,1.68669368]
[1641216229471,2.90705313,175.18,175.1,10.25169368]
[1641216229671,2.90705313,175.18,175.11,1.42669368]
[1641216230106,2.90705313,175.18,175.11,0.26]
[1641216230508,2.90705313,175.18,175.1,8.36]
[1641216231207,3.40705313,175.18,175.1,8.36]
[1641216231408,3.40705313,175.18,175.12,8.5641]
[1641216231607,3.40705313,175.18,175.12,8.8241]
[1641216231806,1.13664961,175.19,175.13,31.45377579]
[1641216232009,1.2462,175.22,175.13,33.14046947]
[1641216232308,74.3777,175.21,175.13,33.14046947]
[1641216232509,72.9728,175.23,175.14,1.42669368]
[1641216232911,2.93621719,175.22,175.14,1.68669368]
[1641216233411,2.67668089,175.22,175.15,1.42669368]
[1641216233614,2.67668089,175.22,175.16,8.5621]
[1641216234213,2.67668089,175.22,175.14,3.24133221]
[1641216234712,11.24028089,175.22,175.14,3.24133221]
[1641216234913,11.74028089,175.22,175.14,3.24133221]
[1641216235113,9.0636,175.22,175.14,3.24133221]
[1641216235311,9.0636,175.22,175.15,31.77442896]
[1641216235312,0.5,175.22,175.15,31.77442896]
[1641216235515,0.5,175.22,175.17,8.5617]
[1641216235711,1.3357,175.25,175.17,8.5617]
[1641216235911,157.700368,175.28,175.18,1.42669368]
[1641216236113,157.700368,175.28,175.19,8.1]
[1641216236114,2.5964744,175.27,175.19,8.1]
[1641216236512,2.5964744,175.27,175.19,9.78669368]
[1641216237116,3.0964744,175.27,175.19,9.78669368]
[1641216237314,2.5964744,175.27,175.19,9.78669368]
[1641216237916,2.5964744,175.27,175.22,8.5596]
[1641216238114,2.5964744,175.27,175.22,8.8196]
[1641216238816,2.5964744,175.27,175.22,0.26]
[1641216239015,2.5964744,175.27,175.19,9.78669368]
[1641216239220,2.5964744,175.27,175.2,3.24133221]
[1641216239616,2.5964744,175.27,175.2,0.26]
[1641216240016,2.5964744,175.27,175.21,8.5602]
[1641216240217,2.5964744,175.27,175.19,9.78669368]
[1641216240817,0.240968,175.28,175.19,9.78669368]
[1641216241419,0.240968,175.28,175.19,18.34789368]
[1641216241616,0.240968,175.28,175.19,18.08789368]
[1641216241817,2.64603753,175.27,175.19,16.6612]
[1641216242019,0.240968,175.28,175.19,16.6612]
[1641216242619,8.801368,175.28,175.2,11.80183221]
[1641216243018,2.33330781,175.27,175.2,11.80183221]
[1641216243619,8.801268,175.28,175.2,11.80183221]
[1641216243819,8.801268,175.28,175.21,9.98669368]
[1641216244021,8.801268,175.28,175.21,8.56]
[1641216244419,9.301268,175.28,175.17,36.6334]
[1641216244620,2.9746375,175.27,175.17,8.1]
[1641216245020,8.5612,175.26,175.19,8.5609]
[1641216246021,8.5612,175.26,175.19,8.8209]
[1641216246320,8.5612,175.26,175.19,10.24759368]
[1641216247021,8.5612,175.26,175.19,9.98759368]
[1641216247420,8.5612,175.26,175.19,8.5609]
[1641216248022,0.240968,175.28,175.2,1.42669368]
[1641216249324,0.240968,175.28,175.24,8.5588]
[1641216249524,0.240968,175.28,175.24,8.8188]
[1641216249724,0.240968,175.28,175.25,1.42669368]
[1641216250125,0.240968,175.28,175.26,1.46780003]
[1641216250527,0.240968,175.28,175.26,2.89449371]
[1641216250925,0.240968,175.28,175.26,1.46780003]
[1641216251126,1.56439994,175.27,175.23,27.93994257]
[1641216251327,1.56439994,175.27,175.23,1.42669368]
[1641216253025,1.56439994,175.27,175.23,1.68669368]
[1641216253226,2.7647812,175.28,175.23,1.68669368]
[1641216254026,68.23241701,175.33,175.23,1.68669368]
[1641216254428,8.5596,175.29,175.23,1.68669368]
[1641216255628,8.5596,175.29,175.23,1.42669368]
[1641216256653,8.5596,175.29,175.23,9.98589368]
[1641216256857,10.88380287,175.3,175.23,9.98589368]
[1641216257055,10.88380287,175.3,175.23,10.24589368]
[1641216257255,2.32480287,175.3,175.23,10.24589368]
[1641216257655,1.3451,175.32,175.23,10.24589368]
[1641216258658,2.48189506,175.31,175.23,10.24589368]
[1641216258857,11.04039506,175.31,175.23,10.24589368]
[1641216262663,2.48189506,175.31,175.23,10.24589368]
[1641216264364,9.3511,175.4,175.23,18.34589368]
[1641216264565,1.2489,175.36,175.23,18.34589368]
[1641216264965,8.5572,175.34,175.23,18.08589368]
[1641216265164,1.2489,175.36,175.23,19.41539368]
[1641216265369,2.42356372,175.35,175.23,19.41539368]
[1641216266166,2.42356372,175.35,175.23,27.68796794]
[1641216266568,2.42356372,175.35,175.23,36.15969468]
[1641216269869,8.5558,175.36,175.23,36.15969468]
[1641216270070,9.8405,175.38,175.23,36.15969468]
[1641216270469,75.2488,175.39,175.23,36.15969468]
[1641216271068,2.62330623,175.38,175.23,36.15969468]
[1641216271268,11.17810623,175.38,175.23,35.89969468]
[1641216272470,11.43810623,175.38,175.23,35.89969468]
[1641216272670,1.3452,175.37,175.23,35.89969468]
[1641216272870,2.19529234,175.33,175.23,35.89969468]
[1641216273477,2.19529234,175.33,175.23,36.15969468]
[1641216280581,2.19529234,175.33,175.23,35.89969468]
[1641216282082,2.19529234,175.33,175.23,36.15969468]
[1641216282505,2.19529234,175.33,175.23,35.89969468]
[1641216282681,10.75249234,175.33,175.23,35.89969468]
[1641216283886,10.75249234,175.33,175.23,36.15969468]
[1641216284890,10.75249234,175.33,175.23,27.88712042]
[1641216285787,10.75249234,175.33,175.23,19.67539368]